[Event "Reykjavik Open 2024"]
[Site "Reykjavik"]
[Date "2024.03.20"]
[Round "8.8"]
[White "Adhiban, B.."]
[Black "Kjartansson, Gudmundur"]
[Result "0-1"]
[ECO "C67"]
[WhiteElo "2541"]
[BlackElo "2465"]
[Annotator "TA"]
[PlyCount "92"]
[EventDate "2024.03.12"]
[EventCountry "ISL"]
[SourceTitle "playchess.com"]
[Source "ChessBase"]
[SourceQuality "1"]
[TimeControl "40/5400+30:1800+30"]

{[%evp 19,92,9,15,0,19,5,96,97,101,95,89,94,100,69,70,-73,-68,-154,-101,-104,-85,-124,-121,-113,-100,-120,-32,-40,-38,-50,-54,-66,0,-39,-24,-28,-25,-48,-49,-62,-55,-77,-87,-86,-56,-83,-82,-82,-82,-81,-75,-162,-162,-137,-78,-312,-312,-343,-337,-1318,-1318,-1318,-1318,-1307,-1319,-1319,-1319,-1319,-1309,-1243,-290,-1164,-1080,-737,-657]} 1. e4 {[%emt 0:01:04]} e5 {[%emt 0:00:11]} 2. Nf3 {[%emt 0:00:05]} Nc6 {[%emt 0:00:03]} 3. Bb5 {[%emt 0:00:04]} Nf6 {[%emt 0:00:18]} 4. O-O {[%emt 0:00:06]} Nxe4 {[%emt 0:00:18]} 5. d4 {[%emt 0:00:05]} Nd6 {[%emt 0:00:11]} 6. Bxc6 {[%emt 0:00:04]} dxc6 {[%emt 0:00:05]} 7. dxe5 {[%emt 0:00:04]} Nf5 {[%emt 0:00:06]} 8. Qxd8+ {[%emt 0:00:06]} Kxd8 {[%emt 0:00:04]} 9. Rd1+ {[%emt 0:00:04]} Ke8 {[%emt 0:00:13]} 10. Nc3 {[%emt 0:00:04]} Ne7 {[%emt 0:00:42]} 11. a4 {[%emt 0:08:01]} a5 {[%emt 0:03:40]} 12. Nd4 {[%emt 0:06:17][%cal Od4b5] Schwarz muss nun Ndb5! beachten.} Nf5 {[%emt 0:09:45] [#]} (12... Ng6 $11) 13. Ndb5 $1 $16 {[%emt 0:13:11] Weiß steht besser.} cxb5 {[%emt 0:01:36]} 14. Nxb5 {[%emt 0:00:01]} Ke7 {[%emt 0:15:02] ...c6 ist eine echte Drohung.} 15. Nxc7 {[%emt 0:01:05]} Rb8 {[%emt 0:02:54]} 16. g4 {[%emt 0:23:06][%mdl 1024] Weiss hat starke Kompensation.} Nh6 {[%emt 0:00:46]} 17. Nd5+ {[%emt 0:00:12]} (17. h3 $14 {behält die Oberhand.}) 17... Kd7 $1 $17 {[%emt 0:02:54]} 18. Bg5 {[%emt 0:38:18]} ({Besser ist} 18. Be3 $15 Kc6 (18... Nxg4 $2 19. Ba7 $18) 19. h3) 18... Kc6 {[%emt 0:05:58]} (18... Nxg4 $142 {[%cal Od7e6] Und jetzt ...Ke6! wäre schön.} 19. e6+ Kxe6 20. Nc7+ Kf5 21. Rd5+ Ne5) 19. h3 {[%emt 0:00:16][%cal Ob2b4]} Be6 {[%emt 0:15:49]} 20. Ne7+ {[%emt 0:00:23]} Bxe7 {[%emt 0:03:35]} 21. Bxe7 {[%emt 0:00:02]} Rhe8 $1 {[%emt 0:02:15]} 22. Bg5 {[%emt 0:01:39]} b5 {[%emt 0:19:17]} (22... Ng8 $1 $17 {[%cal Oh7h5]} 23. Ra3 b6) 23. b3 {[%emt 0:01:09]} bxa4 {[%emt 0:02:11]} 24. Rd6+ {[%emt 0:00:06]} Kc7 {[%emt 0:00:48]} 25. Rxa4 {[%emt 0:00:06] [#]} f6 $1 {[%emt 0:02:44]} 26. Bxh6 {[%emt 0:04:10]} (26. Rxa5 $5 fxe5 (26... fxg5 27. Rc5+ Kb7 28. Rb5+ Kc8 29. Rc5+ Kb7 30. Rb5+ Ka7 31. Ra5+ Kb7 32. Rb5+ $11) 27. Raa6 $17) 26... gxh6 {[%emt 0:01:07]} 27. Rxa5 {[%emt 0:00:06] Droht stark Raa6.} fxe5 {[%emt 0:00:46]} 28. Rda6 {[%emt 0:00:05]} Bf7 {[%emt 0:03:53]} 29. Rc5+ {[%emt 0:02:08]} Kd7 {[%emt 0:00:20]} 30. Rxh6 {[%emt 0:02:40]} Bg6 {[%emt 0:00:26]} 31. h4 {[%emt 0:00:02]} Rbc8 {[%emt 0:02:45]} 32. Rxc8 {[%emt 0:00:57]} Rxc8 $15 {[%emt 0:00:12][%mdl 4096] Endspiel. KRB-KR} 33. c4 {[%emt 0:00:06]} Rb8 {[%emt 0:02:13]} 34. h5 {[%emt 0:00:12]} Bc2 {[%emt 0:00:42] Schwarz steht aktiver.} 35. c5 {[%emt 0:01:22]} (35. f3 $17) 35... Rxb3 $19 {[%emt 0:00:23]} 36. g5 {[%emt 0:00:29] [#]} Be4 {[%emt 0:02:34]} (36... Ke7 $142 $1 {Und ...Rc3 würde nun gewinnen.} 37. c6 Rb8) 37. Kh2 $2 {[%emt 0:00:27] Der Zug kostet die Partie für Weiß.} (37. Kf1 $17) 37... Rf3 {[%emt 0:00:33]} 38. c6+ {[%emt 0:00:30]} Kc7 {[%emt 0:00:32]} ({Und nicht} 38... Bxc6 39. Rxh7+ Ke8 40. g6 $11) 39. Re6 $2 {[%emt 0:00:29]} (39. Kg1) 39... Rxf2+ {[%emt 0:01:01]} 40. Kg3 {[%emt 0:00:27]} Rg2+ {[%emt 0:00:53]} 41. Kh4 {[%emt 0:02:06]} Bf5 {[%emt 0:07:46]} 42. Rxe5 {[%emt 0:01:04]} Rg4+ {[%emt 0:00:19]} 43. Kh3 {[%emt 0:00:04]} Rxg5+ {[%emt 0:00:07]} 44. Kh4 {[%emt 0:00:03]} Rg4+ {[%emt 0:01:18]} 45. Kh3 {[%emt 0:00:01]} Bc8 {[%emt 0:00:34] ( -> ...Rg5+)} 46. Kh2 {[%emt 0:01:42]} Kxc6 {[%emt 0:01:05] Gewichteter Fehlerwert: Weiß=0.56/Schwarz=0.14 (sehr präzise) .  Verlustzug:     	Weiß=1     	---        Fehler:       	Weiß=4     	Schwarz=5     Ungenau:       	Weiß=3     	Schwarz=1     OK:         	Weiß=7     	Schwarz=10    Bester:       	Weiß=4     	Schwarz=7     Stark:        	---       	Schwarz=2} 0-1

[Event "Reykjavik Open 2024"]
[Site "Reykjavik"]
[Date "2024.03.20"]
[Round "8.9"]
[White "Lu, Miaoyi"]
[Black "Yilmazyerli, Mert"]
[Result "1/2-1/2"]
[ECO "C67"]
[WhiteElo "2392"]
[BlackElo "2526"]
[Annotator "TA"]
[PlyCount "69"]
[EventDate "2024.03.12"]
[EventCountry "ISL"]
[SourceTitle "playchess.com"]
[Source "ChessBase"]
[SourceQuality "1"]
[TimeControl "40/5400+30:1800+30"]

{[%evp 16,69,8,7,27,8,6,14,20,12,13,22,36,35,23,21,35,42,41,17,25,22,20,21,16,0,19,16,25,20,17,16,19,17,28,21,40,45,38,31,36,23,18,20,24,0,4,0,0,0,0,0,0,0,0,0]} 1. e4 {[%emt 0:00:01]} e5 {[%emt 0:05:49]} 2. Nf3 {[%emt 0:00:02]} Nc6 {[%emt 0:00:07]} 3. Bb5 {[%emt 0:00:05]} Nf6 {[%emt 0:00:06]} 4. O-O {[%emt 0:00:05][%cal Bh1f1,Bf1e1,Be1e5][%mdl 32]} Nxe4 {[%emt 0:00:04]} 5. Re1 {[%emt 0:00:04]} Nd6 {[%emt 0:00:05]} 6. Nxe5 {[%emt 0:00:02]} Be7 {[%emt 0:00:06]} 7. Bf1 {[%emt 0:00:04]} Nxe5 {[%emt 0:00:06]} 8. Rxe5 {[%emt 0:00:03]} O-O {[%emt 0:00:07]} 9. d4 {[%emt 0:00:04]} Bf6 {[%emt 0:00:07]} 10. Re2 {[%emt 0:00:03]} b6 {[%emt 0:00:42]} 11. Re1 {[%emt 0:04:57]} Bb7 {[%emt 0:00:04]} 12. Bf4 {[%emt 0:06:47]} Nf5 {[%emt 0:05:10][%cal Bd6f5,Bf5h4,Bh4g6,Bg6f4][%mdl 32]} 13. c3 {[%emt 0:00:34]} Nh4 {[%emt 0:03:03]} 14. Nd2 {[%emt 0:06:22][%cal Bb1d2,Bd2e4,Be4g3,Bg3f5][%mdl 32]} Bg5 {[%emt 0:01:58]} 15. Qg4 {[%emt 0:07:06]} Bxf4 {[%emt 0:01:11]} 16. Qxf4 {[%emt 0:00:02]} d6 {[%emt 0:01:58]} 17. Ne4 {[%emt 0:14:01]} Ng6 {[%emt 0:06:41]} 18. Qd2 {[%emt 0:03:21]} Re8 {[%emt 0:02:38]} 19. d5 {[%emt 0:03:03]} Qh4 {[%emt 0:07:13]} 20. Ng3 {[%emt 0:04:56]} Qf4 {[%emt 0:05:02]} 21. Qxf4 {[%emt 0:03:00]} Nxf4 {[%emt 0:00:05]} (21... Rxe1 {simplifies} 22. Rxe1 Nxf4 23. c4 Kf8) 22. c4 {[%emt 0:00:05]} Kf8 {[%emt 0:06:33]} 23. Nf5 {[%emt 0:05:20]} g6 {[%emt 0:01:44]} 24. Nd4 {[%emt 0:00:31]} Rxe1 {[%emt 0:00:36]} 25. Rxe1 {[%emt 0:00:03]} Re8 {[%emt 0:00:06]} 26. Rxe8+ {[%emt 0:02:30]} Kxe8 $14 {[%emt 0:01:13][%mdl 4096] Endgame. KBN-KBN} 27. g3 {[%emt 0:11:55]} Nh5 {[%emt 0:00:14]} 28. Bh3 {[%emt 0:00:03]} Nf6 {[%emt 0:01:56]} 29. f3 {[%emt 0:00:27]} a6 {[%emt 0:04:16]} 30. a4 {[%emt 0:03:18]} Nd7 {[%emt 0:02:34] The position is equal.} 31. Kf2 {[%emt 0:06:26]} Ne5 {[%emt 0:02:21]} 32. b3 {[%emt 0:00:02]} c5 {[%emt 0:00:07]} 33. dxc6 {[%emt 0:03:47]} Nxc6 {[%emt 0:00:04]} 34. Nxc6 {[%emt 0:05:31]} Bxc6 {[%emt 0:00:05]} 35. Ke3 {[%emt 0:03:39] Weighted Error Value: White=0.05 (flawless) /Black=0.05 (flawless) .  OK:         	White=9     	Black=9} 1/2-1/2

[Event "Reykjavik Open 2024"]
[Site "Reykjavik"]
[Date "2024.03.20"]
[Round "8.10"]
[White "Can, Emre"]
[Black "Steingrimsson, Hedinn"]
[Result "1/2-1/2"]
[ECO "D26"]
[WhiteElo "2551"]
[BlackElo "2477"]
[Annotator "TA"]
[PlyCount "42"]
[EventDate "2024.03.12"]
[EventCountry "ISL"]
[SourceTitle "playchess.com"]
[Source "ChessBase"]
[SourceQuality "1"]
[TimeControl "40/5400+30:1800+30"]

{[%evp 18,42,42,21,62,30,43,15,46,0,20,1,14,0,0,0,0,0,12,16,7,3,68,0,7,0,0]} 1. d4 {[%emt 0:07:46]} d5 {[%emt 0:05:27]} 2. Nf3 {[%emt 0:00:19]} Nf6 {[%emt 0:00:12]} 3. c4 {[%emt 0:00:13]} dxc4 {[%emt 0:00:11]} 4. e3 {[%emt 0:00:52]} e6 {[%emt 0:00:02]} 5. Bxc4 {[%emt 0:00:20]} c5 {[%emt 0:00:02]} 6. Qe2 {[%emt 0:03:01]} a6 {[%emt 0:02:55]} 7. dxc5 {[%emt 0:00:31]} Bxc5 {[%emt 0:04:57]} 8. O-O {[%emt 0:00:08]} b5 {[%emt 0:00:31]} 9. Bd3 {[%emt 0:00:23]} Nc6 {[%emt 0:04:40]} 10. Nbd2 {[%emt 0:06:02]} Ra7 {[%emt 0:11:35]} 11. e4 {[%emt 0:10:22]} Rd7 {[%emt 0:02:59]} 12. Bc2 {[%emt 0:01:24]} e5 {[%emt 0:16:19]} 13. Nb3 {[%emt 0:01:26]} Bb6 {[%emt 0:01:43]} 14. Be3 {[%emt 0:02:11]} O-O {[%emt 0:00:26]} 15. Rac1 {[%emt 0:09:07]} Rd6 {[%emt 0:06:50]} 16. h3 {[%emt 0:01:19]} Be6 {[%emt 0:00:38] [#] ...Bc4 is the strong threat.} 17. Rfd1 {[%emt 0:04:44]} Bc4 {[%emt 0:00:20]} 18. Qe1 {[%emt 0:00:35] Strongly threatening Rxd6.} Bxe3 {[%emt 0:04:10]} 19. Qxe3 {[%emt 0:01:45]} Rxd1+ {[%emt 0:12:16]} (19... Qe7 $11) 20. Rxd1 {[%emt 0:08:05]} (20. Bxd1 $14 Nb4 21. Nxe5) 20... Qc7 $11 {[%emt 0:00:03]} 21. a3 {[%emt 0:03:21]} Rc8 {[%emt 0:03:04] Weighted Error Value: White=0.23 (precise) /Black=0.18 (very precise) .  Mistake:       	White=1     	Black=1      Inaccurate:     	White=3     	Black=1      OK:         	White=3     	Black=6} 1/2-1/2

[Event "Reykjavik Open 2024"]
[Site "Reykjavik"]
[Date "2024.03.20"]
[Round "8.11"]
[White "Sushanth Kamabathula"]
[Black "Balakrishnan, Praveen"]
[Result "0-1"]
[ECO "C06"]
[WhiteElo "1918"]
[BlackElo "2490"]
[Annotator "TA"]
[PlyCount "144"]
[EventDate "2024.03.12"]
[EventCountry "ISL"]
[SourceTitle "playchess.com"]
[Source "ChessBase"]
[SourceQuality "1"]
[TimeControl "40/5400+30:1800+30"]

{[%evp 26,144,29,36,35,35,29,25,28,41,39,33,40,34,43,29,29,12,12,18,16,18,20,18,22,20,37,21,33,31,45,38,50,46,76,40,41,47,66,53,72,46,53,8,57,61,72,-12,-3,-15,-13,-14,-9,-10,24,27,34,24,34,25,32,0,4,-10,21,22,35,0,0,0,0,0,0,0,0,0,0,0,13,13,56,0,0,0,0,0,0,-14,0,0,0,0,0,0,0,0,0,-8,-8,-8,-8,-8,-8,-8,-8,-114,-114,-114,-114,-114,-114,-114,-114,-29969,-29971,-29971,-29972,-29974,-29975,-29972,-29972]} 1. e4 {[%emt 0:00:12]} e6 {[%emt 0:08:48]} 2. d4 {[%emt 0:00:20]} d5 {[%emt 0:00:07]} 3. Nd2 {[%emt 0:00:04]} Nf6 {[%emt 0:00:10]} 4. e5 {[%emt 0:00:07]} Nfd7 {[%emt 0:00:06]} 5. Bd3 {[%emt 0:00:04]} c5 {[%emt 0:00:12]} 6. c3 {[%emt 0:00:06]} Nc6 {[%emt 0:00:09]} 7. Ne2 {[%emt 0:00:07]} cxd4 {[%emt 0:00:19]} 8. cxd4 {[%emt 0:00:07]} f6 {[%emt 0:00:09]} 9. exf6 {[%emt 0:00:07]} Nxf6 {[%emt 0:00:06]} 10. O-O {[%emt 0:00:11]} Bd6 {[%emt 0:00:06]} 11. Nf3 {[%emt 0:00:05]} O-O {[%emt 0:00:10]} 12. Bf4 {[%emt 0:00:19]} Bxf4 {[%emt 0:00:10]} 13. Nxf4 {[%emt 0:00:05][%cal Be2f4,Bf4h5,Bh5g3][%mdl 32]} Ng4 {[%emt 0:00:10]} 14. Qd2 {[%emt 0:00:06]} Qf6 {[%emt 0:00:22][%csl LRd4,LRf4]} 15. Nh5 {[%emt 0:01:02]} (15. Ne2 {ist vielschichtiger.} e5 16. Nxe5 Ngxe5 17. dxe5 Nxe5 18. Bc2) 15... Qh6 {[%emt 0:00:13]} 16. Qxh6 {[%emt 0:00:12]} Nxh6 {[%emt 0:00:06] Weiß hat minimalen Vorteil.} 17. Rac1 {[%emt 0:00:20]} a6 {[%emt 0:00:16]} 18. Ng3 {[%emt 0:01:18]} g6 {[%emt 0:08:00]} 19. Ne2 {[%emt 0:01:35]} Nf7 {[%emt 0:04:19]} 20. Rfe1 {[%emt 0:01:53]} Bd7 {[%emt 0:05:08]} 21. Nf4 {[%emt 0:14:34]} Ng5 {[%emt 0:08:04]} 22. Nxg5 {[%emt 0:07:13]} Rxf4 {[%emt 0:00:09]} 23. Nxe6 {[%emt 0:01:05]} Bxe6 {[%emt 0:00:21]} 24. Rxe6 {[%emt 0:00:09]} Rxd4 {[%emt 0:03:47]} 25. Re3 {[%emt 0:07:14]} Rf4 {[%emt 0:25:49]} 26. f3 {[%emt 0:05:21]} Rf6 {[%emt 0:02:08]} 27. Kf2 {[%emt 0:02:59]} g5 {[%emt 0:04:02]} 28. Rc5 {[%emt 0:10:05]} Rd8 {[%emt 0:01:10]} 29. Kg3 {[%emt 0:01:19]} Rd7 {[%emt 0:15:45]} 30. Kg4 {[%emt 0:06:19]} h6 {[%emt 0:04:13]} 31. h4 {[%emt 0:16:13]} gxh4 {[%emt 0:05:45]} 32. Kxh4 {[%emt 0:00:13]} Kf7 {[%emt 0:00:33]} 33. Kg4 {[%emt 0:01:41]} Rd8 {[%emt 0:01:19]} 34. f4 {[%emt 0:03:53]} Rg8+ {[%emt 0:01:44]} (34... h5+ $1 $11 35. Kg5 (35. Kxh5 Rh8+ 36. Kg5 Rg8+ 37. Kh5 Rh8+ 38. Kg5 Rg8+ 39. Kh5 Rh8+ $11) 35... Rg8+ 36. Kxh5 Rh8+ 37. Kg5 (37. Kg4 Rg8+ 38. Kh5 Rh8+ 39. Kg5 Rg8+ 40. Kh5 $11) 37... Rg8+ 38. Kh5 Rxg2 39. Rxd5 Rxf4 (39... Rxb2 $2 40. Rd7+ Kf8 41. Bg6 $18)) 35. Kh3 $14 {[%emt 0:00:29]} Re6 {[%emt 0:00:56]} 36. Rf3 {[%emt 0:06:27]} (36. Rxe6 $16 Kxe6 37. Rc1) 36... Nd4 $11 {[%emt 0:01:57]} 37. Rc7+ {[%emt 0:00:27]} Kf6 {[%emt 0:00:57]} 38. Bh7 $1 {[%emt 0:01:30]} Rg7 {[%emt 0:00:24]} 39. Rfc3 {[%emt 0:00:52]} Nb5 {[%emt 0:00:58]} 40. Rxg7 {[%emt 0:00:09]} Kxg7 {[%emt 0:00:25][%mdl 4096] Endspiel. KRB-KRN} 41. Bf5 {[%emt 0:30:12]} Rf6 {[%emt 0:12:12][%cal Ob5c3]} 42. Rg3+ {[%emt 0:00:00]} Kf7 {[%emt 0:00:41]} 43. Kg4 {[%emt 0:00:00]} Nd4 {[%emt 0:08:02]} 44. Bd3 {[%emt 0:00:00]} Ne6 {[%emt 0:00:26]} 45. f5 {[%emt 0:00:00]} Nc5 {[%emt 0:00:20]} 46. Kf4 {[%emt 0:00:00]} Rb6 {[%emt 0:00:38]} 47. b3 {[%emt 0:00:00]} Nd7 {[%emt 0:00:14]} 48. Rg6 {[%emt 0:00:00]} Rb4+ {[%emt 0:02:00]} ({Bitte nicht} 48... Rxg6 $6 49. fxg6+ Kf6 50. g7 Kxg7 51. Bf5 $16) 49. Ke3 $1 {[%emt 0:00:00]} Nf6 {[%emt 0:01:36]} 50. g3 {[%emt 0:00:00]} (50. Rxh6 $2 {geht unter.} Ng4+ 51. Kd2 Nxh6 $19) 50... h5 {[%emt 0:05:15]} 51. Kd2 {[%emt 0:00:00]} Rb6 {[%emt 0:03:31]} 52. Be2 {[%emt 0:00:00] Droht Bxh5 und aus.} Rc6 {[%emt 0:01:00]} 53. Kd1 {[%emt 0:00:52]} (53. Bf3 $14) 53... Rc3 {[%emt 0:00:40]} 54. Rg5 $1 {[%emt 0:01:06]} Ne4 {[%emt 0:00:35][%csl LRg3,LRg5]} 55. Rxh5 {[%emt 0:01:06]} Rxg3 {[%emt 0:00:14]} 56. Rh7+ {[%emt 0:02:44]} Rg7 {[%emt 0:00:39]} 57. Rh6 {[%emt 0:02:39]} Rg2 {[%emt 0:00:39] [#] Weiss muss nun ...Nc3+ beachten.} 58. Bf3 {[%emt 0:05:10]} Rxa2 {[%emt 0:00:29]} 59. Rb6 {[%emt 0:00:10]} Kg7 {[%emt 0:00:36]} 60. Rxb7+ {[%emt 0:06:31]} Kf6 {[%emt 0:00:01]} 61. Bxe4 {[%emt 0:00:07]} dxe4 {[%emt 0:00:06] KR-KR} 62. b4 $1 {[%emt 0:00:04][%cal Bb3b4,Bb4b5,Bb5b6][%mdl 32]} Kxf5 {[%emt 0:00:29]} 63. b5 {[%emt 0:00:06]} a5 {[%emt 0:01:19]} (63... Kf4 {vereinfacht} 64. bxa6 Rxa6 65. Rb3 Ra7) 64. b6 {[%emt 0:03:38] Rb8 wäre nun fies.} Kf4 {[%emt 0:00:15]} 65. Rf7+ {[%emt 0:00:59]} (65. Kc1 $1 $11 {war der einzige Weg, das Gleichgewicht zu halten.} Ra3 66. Rb8) 65... Ke3 $17 {[%emt 0:00:18] Zielt auf ...Rb2 ab.} 66. Rf5 {[%emt 0:00:29] [#]} Rb2 $1 {[%emt 0:00:30] Schwarz steht aktiver.} 67. Rxa5 {[%emt 0:00:48]} Rb1+ {[%emt 0:00:08]} 68. Kc2 {[%emt 0:00:06]} Rxb6 {[%emt 0:00:03] ( -> ...Kf2)} 69. Re5 $2 {[%emt 0:00:30][%mdl 8192] Davon erholt Weiß sich nicht mehr.} (69. Kd1 $17) 69... Rd6 {[%emt 0:00:15] Schwarz setzt Matt.} 70. Rh5 {[%emt 0:00:43]} Kf2 {[%emt 0:00:16]} 71. Rf5+ {[%emt 0:00:47]} Ke2 {[%emt 0:00:07]} 72. Rh5 {[%emt 0:00:37]} Rc6+ {[%emt 0:00:04] Gewichteter Fehlerwert: Weiß=0.10 (sehr präzise) /Schwarz=0.08 (makellos) .  Verlustzug:     	Weiß=1     	---        Fehler:       	Weiß=3     	Schwarz=1     Ungenau:       	Weiß=5     	Schwarz=4     OK:         	Weiß=22    	Schwarz=22    Bester:       	Weiß=4     	Schwarz=4     Stark:        	Weiß=4     	Schwarz=1} 0-1

[Event "Reykjavik Open 2024"]
[Site "Reykjavik"]
[Date "2024.03.20"]
[Round "8.12"]
[White "Garifullina, Leya"]
[Black "Ivanchuk, Vasyl"]
[Result "1-0"]
[ECO "C70"]
[WhiteElo "2413"]
[BlackElo "2625"]
[Annotator "TA"]
[PlyCount "85"]
[EventDate "2024.03.12"]
[EventCountry "ISL"]
[SourceTitle "playchess.com"]
[Source "ChessBase"]
[SourceQuality "1"]
[TimeControl "40/5400+30:1800+30"]

{[%evp 9,85,36,30,31,49,35,26,29,24,10,12,7,34,25,40,7,12,16,38,28,47,57,59,31,45,-16,-21,-15,-2,-60,-52,-50,-52,-25,0,0,0,0,0,0,0,0,0,-28,-27,-37,0,0,0,0,0,0,-2,-35,-28,-72,-25,-24,-32,-39,-22,-43,-16,-16,-20,-22,0,0,0,0,0,0,0,0,33,53,24,34]} 1. e4 {[%emt 0:05:12]} e5 {[%emt 0:00:09]} 2. Nf3 {[%emt 0:00:05]} Nc6 {[%emt 0:00:05]} 3. Bb5 {[%emt 0:00:05][%cal Bf1b5,Bb5a4,Ba4b3][%mdl 32]} a6 {[%emt 0:00:05]} 4. Ba4 {[%emt 0:00:05]} g6 {[%emt 0:00:03]} 5. d4 {[%emt 0:00:50]} b5 {[%emt 0:00:04]} 6. Bb3 {[%emt 0:00:20]} exd4 {[%emt 0:00:04]} 7. c3 {[%emt 0:13:04]} Bg7 {[%emt 0:01:37]} 8. cxd4 {[%emt 0:00:07]} Nge7 {[%emt 0:00:04]} 9. d5 {[%emt 0:00:07]} Na5 {[%emt 0:00:06]} 10. Bd2 {[%emt 0:00:21]} c5 {[%emt 0:09:21]} 11. Bc3 {[%emt 0:04:13] Inhibits d6.} Bxc3+ {[%emt 0:14:17]} 12. bxc3 {[%emt 0:04:25] Black should prevent d6.} d6 {[%emt 0:00:35]} 13. Nbd2 {[%emt 0:00:57]} f6 {[%emt 0:10:14]} 14. O-O {[%emt 0:00:19]} g5 {[%emt 0:00:03] [#]} 15. e5 $1 {[%emt 0:16:11]} dxe5 {[%emt 0:00:14][%cal Oa5b3] ...Nxb3! is the strong threat.} 16. Ne4 {[%emt 0:00:05][%csl LRc5,LRf6]} (16. d6 {seems wilder.} Ng6 17. Ne4 Ra7 18. Qd5) 16... Ng6 {[%emt 0:01:47]} 17. Nxc5 {[%emt 0:01:37]} (17. d6 $1 $14 g4 18. Qd5 Nxb3 19. axb3 (19. Qxa8 Nxa1 20. Nfd2 Kf7 $11)) 17... Qb6 $11 {[%emt 0:03:14]} 18. Ne4 {[%emt 0:02:14]} O-O {[%emt 0:00:13]} 19. d6+ {[%emt 0:02:04]} ({Better is} 19. Nfd2 $11) 19... Kg7 $15 {[%emt 0:00:01]} 20. d7 {[%emt 0:03:30]} Bb7 {[%emt 0:00:01]} 21. Qd6 $1 {[%emt 0:06:09]} Qc6 {[%emt 0:33:12]} 22. Qxc6 {[%emt 0:01:01]} Bxc6 {[%emt 0:00:02]} 23. Nc5 $36 {[%emt 0:00:08][%mdl 2048] White fights for an advantage.} Nf4 {[%emt 0:00:07]} 24. Rfd1 $1 {[%emt 0:01:06]} Nb7 {[%emt 0:00:56] Prevents Rd6.} 25. Nxb7 {[%emt 0:01:11]} Bxb7 {[%emt 0:00:04]} 26. Rd2 {[%emt 0:05:36]} Rfd8 {[%emt 0:12:15] Hoping for ...Bxf3.} 27. Ne1 {[%emt 0:00:27]} Bc6 {[%emt 0:00:53]} 28. Rd6 {[%emt 0:02:55]} (28. Rad1 Ra7 29. g3 Nh3+ (29... Raxd7 $2 30. Rxd7+ Rxd7 31. Rxd7+ Bxd7 32. gxf4 $18) 30. Kf1 Raxd7 (30... Bxd7 31. Nc2 $14) 31. Rxd7+ Rxd7 32. Rxd7+ Bxd7) 28... Bxd7 {[%emt 0:00:01] Threatens to win with ...Ne2+.} (28... Rxd7 $2 {loses.} 29. Rxc6 a5 30. Kf1 $18) 29. Rad1 {[%emt 0:00:31]} Ra7 {[%emt 0:00:01]} 30. R1d2 {[%emt 0:02:28] Prevents Ne2+} Ng6 {[%emt 0:04:46]} 31. Nd3 {[%emt 0:00:31]} Rc8 {[%emt 0:02:24] Wards off Nc5} 32. Nb4 {[%emt 0:05:22]} Nf8 {[%emt 0:02:55]} ({Black should play} 32... Be8 $17 33. Nd5 Bf7) 33. Nxa6 $11 {[%emt 0:07:22]} Rxc3 {[%emt 0:00:03]} 34. h3 {[%emt 0:00:16]} h5 {[%emt 0:02:02]} 35. Nb4 {[%emt 0:00:55]} h4 {[%emt 0:00:28]} 36. Kh2 {[%emt 0:00:28]} Rc5 {[%emt 0:02:33]} 37. Rb6 {[%emt 0:00:38]} Bf5 {[%emt 0:00:42]} 38. Rd8 {[%emt 0:02:25][%cal Od8f8] aiming for Rxf8!} Rc8 {[%emt 0:00:51]} 39. Rdd6 {[%emt 0:00:49]} Nd7 {[%emt 0:00:15]} 40. Rxb5 {[%emt 0:00:34] And now Nc6 would win.} Nc5 {[%emt 0:00:03]} 41. Nc6 {[%emt 0:32:41]} Rd7 {[%emt 0:31:00] [#]} 42. Rxc5 {[%emt 0:01:38]} Rxd6 {[%emt 0:00:02] [#]} 43. Ne7 $1 {[%emt 0:00:07][%csl LRc8,LRf5] Weighted Error Value: White=0.09 (flawless) /Black=0.08 (flawless) .  Mistake:       	White=2     	Black=1      Inaccurate:     	White=4     	Black=4      OK:         	White=19    	Black=22     Best:        	White=3     	---        Strong:       	White=3     	---} 1-0